[Event "4NCL 2021-22"]
[Site "England"]
[Date "2022.04.30"]
[Round "7.51"]
[White "Delaney, Killian"]
[Black "Taylor, Adam A"]
[Result "1-0"]
[ECO "E18"]
[WhiteElo "2292"]
[BlackElo "2277"]
[Annotator "TA"]
[PlyCount "71"]
[EventDate "2021.11.27"]
[EventType "team-tourn"]
[EventCountry "ENG"]
[SourceTitle "playchess.com"]
[Source "ChessBase"]
[SourceQuality "1"]
[TimeControl "40/6000+30:3000+30"]

{[%evp 16,71,0,-3,4,-25,-15,-19,-17,-22,-21,-39,-44,-54,-45,-124,-118,-135,-99,-143,-156,-152,-121,-165,-97,-88,-85,-117,279,222,206,155,156,125,170,151,207,216,214,160,273,243,417,372,422,376,366,362,339,268,268,268,267,267,269,269,1589,1519]} 1. c4 {[%emt 0:00:03]} e6 {[%emt 0:17:54]} 2. Nf3 {[%emt 0:03:00]} Nf6 {[%emt 0:00:34][%cal Bg8f6,Bf6e4,Be4c3][%mdl 32]} 3. g3 {[%emt 0:00:38]} b6 {[%emt 0:01:55]} 4. Bg2 {[%emt 0:00:16]} Bb7 {[%emt 0:00:03]} 5. O-O {[%emt 0:00:15]} Be7 {[%emt 0:07:10]} 6. d4 {[%emt 0:09:27][%cal Bd2d4,Bd4d5][%mdl 32]} O-O {[%emt 0:00:09]} 7. Nc3 {[%emt 0:00:49]} Ne4 {[%emt 0:02:34]} 8. d5 {[%emt 0:00:35] 8.Bd2 gains popularity.} Nxc3 {[%emt 0:14:18]} 9. bxc3 {[%emt 0:02:11]} Bf6 {[%emt 0:03:52] E18: Queen's Indian: Old Main Line (4 g3 Bb7 5 Bg2 Be7 6 0-0 0-0 7 Nc3).} 10. e4 {[%emt 0:09:23]} d6 {[%emt 0:16:33] Prevents e5.} 11. Nd4 {[%emt 0:30:33]} e5 {[%emt 0:02:03] The position is equal.} 12. Nc2 {[%emt 0:00:09]} Nd7 {[%emt 0:00:21]} 13. Ne3 {[%emt 0:00:19]} g6 {[%emt 0:02:42]} 14. Qc2 {[%emt 0:11:21] [#]} Bg7 $146 {[%emt 0:04:03]} ({Predecessor:} 14... h5 15. Bh3 Bc8 16. f4 Nc5 17. f5 Bg5 18. Ng2 Bd7 19. Qe2 Bxc1 20. Raxc1 Qg5 21. Rcd1 a5 22. Nh4 Qh6 23. Bg2 g5 24. Qe3 {½-½ (24) Feist,M (2107)-Bade,H (1991) Germany 2019}) 15. f4 {[%emt 0:00:12]} (15. Re1 $15) 15... exf4 $17 {[%emt 0:00:07]} 16. gxf4 {[%emt 0:00:03]} Qh4 {[%emt 0:01:08]} 17. Bd2 {[%emt 0:00:51]} Rae8 {[%emt 0:00:57]} 18. Be1 {[%emt 0:17:28]} Qe7 {[%emt 0:13:50]} 19. f5 {[%emt 0:04:47]} Nc5 {[%emt 0:04:10]} (19... Bc8 $19 {aiming for ...Nc5.} 20. Bg3 Nc5) 20. Ng4 {[%emt 0:01:31]} Nxe4 {[%emt 0:00:58]} 21. f6 {[%emt 0:00:39]} Qd7 {[%emt 0:07:55][%mdl 8192]} (21... Nxf6 $17 22. Bh4 Nxg4 23. Bxe7 Rxe7) 22. fxg7 {[%emt 0:00:20]} Kxg7 {[%emt 0:00:02]} 23. Nf2 {[%emt 0:04:25]} ({Don't blunder} 23. Bxe4 $2 Qxg4+ 24. Bg3 Rxe4 $19) 23... Nc5 {[%emt 0:00:11]} 24. Bd2 {[%emt 0:02:25][%cal Be1d2,Bd2h6,Bh6g5][%mdl 32]} f5 {[%emt 0:03:27]} 25. Nd3 {[%emt 0:04:36]} Ba6 {[%emt 0:00:30]} (25... Qa4 $16 {is a better defense.} 26. Qxa4 Nxa4) 26. Nxc5 $18 {[%emt 0:00:40]} bxc5 {[%emt 0:00:38]} 27. Qd3 {[%emt 0:00:40]} Qa4 {[%emt 0:00:19]} (27... h6 $16 28. Rae1 Rxe1 29. Rxe1 Qf7) 28. Qh3 {[%emt 0:00:10] [#] Strongly threatening Bh6+.} Kg8 $2 {[%emt 0:02:07]} (28... h5 {might work better.} 29. Qg3 Bxc4) 29. Bh6 {[%emt 0:00:25]} Rf7 {[%emt 0:00:48]} 30. Rfe1 {[%emt 0:00:08] Qh4 is the strong threat.} Rfe7 {[%emt 0:01:03]} 31. Rxe7 {[%emt 0:00:35]} Rxe7 {[%emt 0:00:03]} 32. Qh4 {[%emt 0:00:08]} Re8 {[%emt 0:03:10]} 33. Re1 {[%emt 0:01:01] [#] White wants to mate with Rxe8+.} ({Much less strong is} 33. Qf6 Qd7 34. Rb1 Qf7 $18) 33... Kf7 {[%emt 0:00:07]} 34. Bg5 {[%emt 0:02:13]} Kg8 {[%emt 0:00:41]} 35. h3 {[%emt 0:01:28] Black must now prevent Bd8.} Qd7 {[%emt 0:00:56]} (35... Bc8 36. Bf1 Qd7) 36. Re6 {[%emt 0:00:26] Weighted Error Value: White=0.17 (very precise) /Black=0.44} 1-0

[Event "4NCL 2021-22"]
[Site "England"]
[Date "2022.04.30"]
[Round "7.52"]
[White "Dunn, Andrew"]
[Black "Wall, Gavin"]
[Result "0-1"]
[ECO "A81"]
[WhiteElo "2153"]
[BlackElo "2312"]
[Annotator "TA"]
[PlyCount "78"]
[EventDate "2021.11.27"]
[EventType "team-tourn"]
[EventCountry "ENG"]
[SourceTitle "playchess.com"]
[Source "ChessBase"]
[SourceQuality "1"]
[TimeControl "40/6000+30:3000+30"]

{[%evp 9,78,27,41,-18,0,0,-8,-32,-35,-40,-37,-62,-61,-65,-47,-50,-52,-55,-46,-41,-40,-70,-64,-75,-67,-73,-50,-59,-56,-61,-27,-55,-46,-55,-65,-65,-21,-40,-52,-92,-85,-85,-78,-100,-25,-57,-44,-45,0,-36,-36,-39,-34,-47,-50,-51,4,0,40,-209,-61,-60,-12,-54,-61,-75,-25,-533,-525,-2331,-2150]} 1. d4 {[%emt 0:00:03]} f5 {[%emt 0:00:04]} 2. g3 {[%emt 0:00:08]} Nf6 {[%emt 0:00:05]} 3. Bg2 {[%emt 0:00:08]} g6 {[%emt 0:00:03]} 4. Nh3 {[%emt 0:00:58]} Nc6 {[%emt 0:02:25][%cal Bb8c6,Bc6d8,Bd8f7][%mdl 32]} 5. Nf4 {[%emt 0:06:34]} d6 {[%emt 0:01:34][%cal Bd7d6,Bd6e5,Be5e4][%mdl 32]} 6. c3 {[%emt 0:13:16] A81: Dutch Defence: 2 g3.} (6. d5 $14 Ne5 7. c4) 6... e5 $11 {[%emt 0:03:29]} 7. dxe5 {[%emt 0:01:23]} dxe5 {[%emt 0:02:39] [#]} 8. Qxd8+ $146 {[%emt 0:00:59] The position is equal.} ({Predecessor:} 8. Bxc6+ bxc6 9. Qxd8+ Kxd8 10. Nd3 Bd6 11. Bg5 Ke7 12. Nd2 h6 13. Bxf6+ Kxf6 14. e4 {1-0 (39) Fauland,A (2455)-Yrjola,J (2510) Novi Sad 1990}) 8... Nxd8 {[%emt 0:00:15]} 9. Nd3 {[%emt 0:11:43]} Nf7 {[%emt 0:01:40]} 10. Be3 {[%emt 0:05:22]} Ng4 {[%emt 0:08:54]} 11. Bc5 {[%emt 0:10:51]} e4 {[%emt 0:00:20]} 12. Bxf8 {[%emt 0:00:07]} Rxf8 {[%emt 0:02:21]} 13. Nb4 {[%emt 0:05:44]} Be6 {[%emt 0:01:21] Inhibits Nd5.} 14. Nc2 {[%emt 0:06:04]} O-O-O {[%emt 0:01:36]} 15. h3 {[%emt 0:04:32]} Nge5 {[%emt 0:02:14] Black is much more active.} 16. Nd2 {[%emt 0:07:32]} c5 {[%emt 0:03:43]} 17. b3 {[%emt 0:09:26]} h5 {[%emt 0:05:00][%cal Bh7h5,Bh5h4][%mdl 32]} 18. O-O-O {[%emt 0:04:26]} h4 {[%emt 0:01:40]} 19. c4 {[%emt 0:10:26]} Nc6 {[%emt 0:03:30]} 20. Nb1 {[%emt 0:04:00]} Nd4 {[%emt 0:05:59]} 21. Nc3 {[%emt 0:00:14]} hxg3 {[%emt 0:06:45]} 22. fxg3 {[%emt 0:00:04]} a6 {[%emt 0:01:25][%cal Ba7a6,Ba6b5,Bb5b4][%mdl 32]} 23. Kb2 {[%emt 0:03:06]} Ne5 {[%emt 0:03:01][%cal Oe6c4]} 24. Ne3 {[%emt 0:02:17]} b5 {[%emt 0:04:50]} 25. cxb5 {[%emt 0:00:17]} axb5 {[%emt 0:00:04]} 26. Rd2 {[%emt 0:00:33]} Rf7 {[%emt 0:01:47]} (26... Kb7 $17 27. Rhd1 Rd7) 27. Rc1 {[%emt 0:01:05][%cal Oc3b5] Nxb5! is the strong threat.} Rc7 {[%emt 0:00:26]} 28. Bf1 {[%emt 0:00:55]} Rd6 {[%emt 0:04:38]} 29. Nc2 {[%emt 0:00:52][%cal Od2d4]} (29. Rxd4 $5 cxd4 30. Nxb5 Rxc1 31. Nxd6+ Kd7 32. Kxc1 Kxd6 33. Ng2 $11) 29... b4 {[%emt 0:10:01]} 30. Na4 {[%emt 0:00:43][%cal Oa4c5]} Nb5 {[%emt 0:01:27]} 31. Rxd6 {[%emt 0:00:07]} Nxd6 {[%emt 0:00:04]} 32. Ne3 {[%emt 0:01:00]} c4 {[%emt 0:01:01]} (32... Nd7 $15) 33. Nb6+ {[%emt 0:00:30]} Kb7 {[%emt 0:00:13]} (33... Kb8 $5 {[%cal Rc4b3]}) 34. Nbxc4 {[%emt 0:00:05]} (34. Nbd5 $1 $14 {is the one way to stay ahead.}) 34... Ndxc4+ {[%emt 0:00:09]} ({And not} 34... Nexc4+ 35. bxc4 Kb6 36. a3 $17) ({Black should try} 34... Bxc4 $19 35. Nc2 Be6 36. Nxb4 Rxc1 37. Kxc1 Ne8) 35. bxc4 $15 {[%emt 0:00:18]} Bxc4 {[%emt 0:01:26]} (35... Kc6 $15 36. Nd5 Ra7 37. Nxb4+ Kc5) 36. Rc2 {[%emt 0:00:41]} Kb6 {[%emt 0:01:57]} 37. h4 $1 {[%emt 0:00:57][%cal Oh4h5] [#]} Rc5 {[%emt 0:04:24]} (37... Rc6 $1 $17) 38. Bh3 $2 {[%emt 0:00:42][%mdl 8192] [#]} (38. a3 $1 $11 {and White has nothing to worry.}) 38... Bxe2 $1 $19 {[%emt 0:00:59][%mdl 512]} 39. Rd2 {[%emt 0:01:19]} (39. Bf1 Bxf1) 39... Nd3+ {[%emt 0:01:07] Weighted Error Value: White=0.60/Black=0.26 (precise)} 0-1

[Event "4NCL 2021-22"]
[Site "England"]
[Date "2022.04.30"]
[Round "7.53"]
[White "Murray, David"]
[Black "Oswald, Graeme"]
[Result "1-0"]
[ECO "B90"]
[WhiteElo "2108"]
[BlackElo "2198"]
[Annotator "TA"]
[PlyCount "93"]
[EventDate "2021.11.27"]
[EventType "team-tourn"]
[EventCountry "ENG"]
[SourceTitle "playchess.com"]
[Source "ChessBase"]
[SourceQuality "1"]
[TimeControl "40/6000+30:3000+30"]

{[%evp 12,93,33,9,14,17,24,0,22,9,58,71,68,81,71,63,78,84,81,58,58,62,128,115,109,68,132,123,118,124,257,239,231,110,102,126,111,125,119,112,114,112,114,0,0,0,0,0,0,0,69,0,48,81,142,125,147,141,103,156,128,71,92,80,79,133,383,369,406,358,662,619,1029,837,681,664,1051,1285,1646,1471,12844,1754,1435,1338]} 1. e4 {[%emt 0:00:05]} c5 {[%emt 0:00:08]} 2. Nf3 {[%emt 0:00:09]} d6 {[%emt 0:00:05]} 3. d4 {[%emt 0:00:13]} cxd4 {[%emt 0:00:06]} 4. Nxd4 {[%emt 0:00:04]} Nf6 {[%emt 0:00:06]} 5. Nc3 {[%emt 0:00:50]} a6 {[%emt 0:00:10]} 6. h3 {[%emt 0:01:23]} e5 {[%emt 0:00:34]} 7. Nb3 {[%emt 0:01:34]} Be7 {[%emt 0:02:45] B90: Sicilian Najdorf: Unusual White 6th moves, 6 Be3 Ng4 and 6 Be3 e5.} 8. Be3 {[%emt 0:01:06]} Be6 {[%emt 0:00:26]} 9. Qf3 {[%emt 0:03:08]} Nc6 {[%emt 0:09:54] The position is equal. 9...Nbd7 is the modern continuation.} 10. O-O-O {[%emt 0:03:05]} Qc7 {[%emt 0:00:19]} (10... Rc8 $11) 11. Kb1 {[%emt 0:04:08]} b5 {[%emt 0:01:33]} 12. g4 {[%emt 0:05:21]} h6 {[%emt 0:08:37]} 13. Rg1 {[%emt 0:04:49] [#]} Na5 $146 {[%emt 0:26:46]} ({Predecessor:} 13... Rc8 14. h4 Nd7 15. Nd5 Bxd5 16. exd5 Nd8 17. Bd3 Bxh4 18. Rh1 Be7 19. g5 Nc5 20. Nxc5 dxc5 21. gxh6 g6 22. d6 Bxd6 23. Qf6 Ne6 24. Bxg6 {1-0 (24) Shyam,S (2484)-Padmini,R (2313) Kolkata 2012}) 14. Nxa5 {[%emt 0:04:38]} Qxa5 {[%emt 0:00:03]} 15. Nd5 {[%emt 0:02:23]} Bxd5 {[%emt 0:05:36]} 16. exd5 {[%emt 0:00:35]} Rc8 {[%emt 0:00:31]} (16... Nd7 $14) 17. h4 $16 {[%emt 0:06:19]} Qa4 {[%emt 0:04:29]} 18. Qf5 {[%emt 0:08:43]} Nd7 {[%emt 0:05:51]} (18... Rc7 $1 $14) 19. h5 $1 {[%emt 0:04:39]} Rc7 {[%emt 0:07:55][%cal Oe7g5]} (19... e4 $2 20. Rd2 $16 (20. b3 Qb4 $16)) 20. f4 {[%emt 0:05:20] Prevents Bg5.} e4 {[%emt 0:04:18]} (20... exf4 $16 {was worth a try.} 21. Bxf4 Kd8) 21. Rg2 {[%emt 0:08:43] aiming for Rd4. Active counter play!} ({Weaker is} 21. b3 Qa3 $16) 21... Bf6 {[%emt 0:01:55] [#]} 22. Bd4 $1 {[%emt 0:12:05][%mdl 512]} Bxd4 {[%emt 0:04:32]} (22... Kd8 23. Qxe4) 23. Qxe4+ {[%emt 0:07:11]} Be5 {[%emt 0:00:10]} 24. Qxa4 {[%emt 0:00:13]} bxa4 {[%emt 0:00:02]} 25. fxe5 {[%emt 0:00:15]} Nxe5 {[%emt 0:00:05][%cal Oa4a3]} 26. Bxa6 {[%emt 0:00:41]} O-O {[%emt 0:00:15]} 27. g5 {[%emt 0:03:05]} (27. Rd4 $16) 27... hxg5 $11 {[%emt 0:00:18]} 28. Rxg5 {[%emt 0:00:54]} f5 $1 {[%emt 0:00:14]} 29. Bb5 {[%emt 0:06:55]} a3 {[%emt 0:01:23]} 30. b3 {[%emt 0:00:18][%cal Bb2b3,Bb3b4][%mdl 32]} Re7 {[%emt 0:01:02]} (30... Kh7 $11) 31. Bf1 {[%emt 0:02:24]} (31. c4 $14) 31... f4 {[%emt 0:00:46]} (31... Kh7 $11 {deserves consideration.}) 32. c4 $1 $14 {[%emt 0:01:45][%cal Oc4c5]} Nd7 {[%emt 0:01:33]} (32... Nf3 $142 33. Rg6 Rfe8) 33. Kc2 $16 {[%emt 0:02:32]} f3 {[%emt 0:00:23]} 34. b4 {[%emt 0:05:10][%cal Oc4c5]} f2 {[%emt 0:01:09] [#]} 35. h6 $1 {[%emt 0:01:54]} Rf4 {[%emt 0:03:22] [#]} 36. Rxg7+ $1 {[%emt 0:03:02]} Rxg7 {[%emt 0:00:04]} 37. hxg7 {[%emt 0:00:10]} Kxg7 {[%emt 0:00:23][%mdl 4096] Endgame KRB-KRN} 38. Kb3 {[%emt 0:01:07]} Ne5 $2 {[%emt 0:00:34]} (38... Kf8 $16 39. Kxa3 Rf3+ 40. Kb2 Nb6) 39. c5 $18 {[%emt 0:00:30][%cal Bc4c5,Bc5c6][%mdl 32]} Rf3+ {[%emt 0:01:52]} 40. Ka4 {[%emt 0:00:13] Hoping for c6.} Ng4 $2 {[%emt 0:01:51]} (40... dxc5 41. bxc5 Nf7) 41. c6 {[%emt 0:52:12] White is clearly winning.} Rc3 {[%emt 0:50:49]} 42. Ka5 {[%emt 0:00:00]} Rc2 {[%emt 0:00:00]} 43. Rd3 {[%emt 0:00:00] Strongly threatening Rg3.} Rxa2 {[%emt 0:00:00]} 44. Rg3 {[%emt 0:00:00]} Kf6 {[%emt 0:00:00]} 45. Rxg4 {[%emt 0:00:00] Threatens to win with c7.} Rd2 {[%emt 0:00:00]} 46. b5 {[%emt 0:00:00]} Rxd5 {[%emt 0:00:00]} 47. Rf4+ {[%emt 0:00:00] Weighted Error Value: White=0.12 (very precise) /Black=0.35} 1-0

[Event "4NCL 2021-22"]
[Site "England"]
[Date "2022.04.30"]
[Round "7.54"]
[White "Henderson, David"]
[Black "Kanyamarala, Trisha"]
[Result "1-0"]
[ECO "A21"]
[WhiteElo "2108"]
[BlackElo "2089"]
[Annotator "TA"]
[PlyCount "169"]
[EventDate "2021.11.27"]
[EventType "team-tourn"]
[EventCountry "ENG"]
[SourceTitle "playchess.com"]
[Source "ChessBase"]
[SourceQuality "1"]
[TimeControl "40/6000+30:3000+30"]

{[%evp 13,169,18,18,0,17,0,31,-4,-9,-9,-1,0,0,0,0,0,0,0,0,0,31,36,52,25,30,20,40,23,60,25,59,39,27,29,34,28,35,29,53,47,100,69,72,70,78,36,142,85,82,86,79,74,80,35,24,39,47,0,0,0,36,0,20,0,0,0,0,0,0,-26,4,4,46,4,52,0,18,18,64,64,64,64,64,64,64,51,51,51,52,52,52,52,52,52,52,17,17,17,29954,1238,29959,29959,29965,29967,29966,29967,29968,52,29968,29969,29969,29968,29969,141,29970,29965,29965,29966,29966,29966,29967,29969,29968,29969,29969,29970,29970,29971,29973,29974,29974,29976,29976,29977,29976,29976,29976,29977,29977,29978,29978,29979,29979,29980,29980,29981,29981,29981,29981,29980,29980,29981,29981,0,0,0,29980,29982]} 1. c4 {[%emt 0:00:03]} e5 {[%emt 0:00:31]} 2. g3 {[%emt 0:00:07]} Nc6 {[%emt 0:02:54]} 3. Bg2 {[%emt 0:00:11]} f5 {[%emt 0:03:37]} 4. Nc3 {[%emt 0:01:24]} Nf6 {[%emt 0:01:06]} 5. Nf3 {[%emt 0:12:52]} d6 {[%emt 0:04:54]} 6. d3 {[%emt 0:06:14]} Be7 {[%emt 0:02:04]} 7. O-O {[%emt 0:00:47]} O-O {[%emt 0:01:32]} 8. Nd5 {[%emt 0:03:34] A21: English Opening: 1...e5 2 Nc3.} Kh8 {[%emt 0:18:55]} 9. e3 {[%emt 0:04:58] [#]} Nb8 $146 {[%emt 0:08:20]} ({Predecessor:} 9... Nxd5 10. cxd5 Nb8 11. b3 c6 12. Nd2 cxd5 13. Bxd5 Nc6 14. Nc4 Bd7 15. Bb2 b5 {0-1 (62) Callenberg,R (2008)-Friedrichs,K (2222) Germany 2016}) 10. Qc2 {[%emt 0:10:52] White is slightly better.} Nxd5 {[%emt 0:15:51]} 11. cxd5 {[%emt 0:00:07]} c6 {[%emt 0:04:26]} 12. Ne1 {[%emt 0:09:11]} Bd7 {[%emt 0:03:44]} 13. Bd2 {[%emt 0:02:09][%cal Bc1d2,Bd2c3,Bc3d4][%mdl 32]} Qb6 {[%emt 0:05:47]} 14. Bc3 {[%emt 0:05:28]} f4 {[%emt 0:10:40]} 15. Qe2 {[%emt 0:17:07]} fxe3 {[%emt 0:06:45]} 16. Qxe3 {[%emt 0:02:05]} Qd8 {[%emt 0:02:24]} 17. d4 {[%emt 0:04:32]} Bg5 {[%emt 0:03:03]} 18. Qe2 {[%emt 0:01:41]} (18. Qd3 $5 {[%cal Rd4e5]}) 18... exd4 {[%emt 0:03:57]} 19. Bxd4 {[%emt 0:00:20]} cxd5 {[%emt 0:01:18]} 20. Bxd5 {[%emt 0:03:18]} Bc6 {[%emt 0:00:45]} 21. Bg2 {[%emt 0:01:55]} Nd7 {[%emt 0:02:07]} 22. Bxc6 $40 {[%emt 0:04:05][%mdl 128] White attacks.} bxc6 {[%emt 0:00:09]} 23. Rd1 {[%emt 0:01:34]} Bf6 {[%emt 0:01:35]} 24. Bxf6 {[%emt 0:02:14]} Qxf6 {[%emt 0:00:45]} 25. Nd3 {[%emt 0:00:27]} Nb6 {[%emt 0:01:19]} 26. Rfe1 {[%emt 0:01:17]} d5 {[%emt 0:02:45]} ({Black should play} 26... Nd5 $14) 27. Nc5 {[%emt 0:03:48]} h6 {[%emt 0:01:17]} 28. b3 {[%emt 0:02:18] White is more active.} Rae8 {[%emt 0:00:30]} 29. Qd2 {[%emt 0:00:53]} Qf3 {[%emt 0:00:48]} (29... Qf5 $14) 30. Nd3 {[%emt 0:07:22]} (30. Ne6 $142) 30... Nd7 $16 {[%emt 0:00:49]} 31. Nf4 {[%emt 0:00:06] Strongly threatening Ng6+.} Qg4 {[%emt 0:00:24] Prevents Ng6+.} 32. h3 {[%emt 0:01:04]} Qf5 {[%emt 0:00:32]} 33. Qd3 {[%emt 0:02:06]} (33. Qc3 {is interesting.} Rxe1+ 34. Rxe1 c5 35. b4) 33... Qxd3 {[%emt 0:00:38]} 34. Nxd3 {[%emt 0:00:10]} Kg8 {[%emt 0:00:25]} 35. Rc1 {[%emt 0:00:20]} (35. Nb4 $14 {feels stronger.}) 35... Rxe1+ $11 {[%emt 0:00:31]} 36. Rxe1 {[%emt 0:00:07][%mdl 4096] Endgame KRN-KRN} Kf7 {[%emt 0:00:40]} 37. Kf1 {[%emt 0:00:20]} Rc8 {[%emt 0:00:30]} 38. Re2 {[%emt 0:01:13]} c5 {[%emt 0:00:37]} 39. Ne5+ {[%emt 0:01:00]} Nxe5 {[%emt 0:00:26]} 40. Rxe5 {[%emt 0:00:04] KR-KR} Rd8 {[%emt 0:00:27]} 41. Ke2 {[%emt 0:50:30]} Rd6 {[%emt 0:50:33]} 42. Kd3 {[%emt 0:00:31]} a5 {[%emt 0:00:00]} 43. Kc3 {[%emt 0:00:00]} Rd8 {[%emt 0:00:00]} (43... g5 $11 {deserves consideration.}) 44. Kd3 {[%emt 0:00:00]} (44. h4 $14) 44... a4 {[%emt 0:00:00]} 45. bxa4 {[%emt 0:00:00]} Ra8 {[%emt 0:00:00]} (45... g5 $11 {might be stronger.}) 46. Rxd5 $14 {[%emt 0:00:00]} Rxa4 {[%emt 0:00:00]} 47. Rxc5 {[%emt 0:00:00]} Rxa2 {[%emt 0:00:00]} 48. Rc2 {[%emt 0:00:00]} Ra3+ {[%emt 0:00:00]} 49. Ke4 {[%emt 0:00:00]} Ra4+ {[%emt 0:00:00]} 50. Kf3 {[%emt 0:00:00]} Ra3+ {[%emt 0:00:00]} 51. Kg4 {[%emt 0:00:00]} Ra4+ {[%emt 0:00:00]} 52. Kh5 {[%emt 0:00:00]} Ra5+ {[%emt 0:00:00]} 53. Kh4 $1 {[%emt 0:00:00]} Ra4+ {[%emt 0:00:00]} 54. g4 {[%emt 0:00:00]} Ra3 {[%emt 0:00:00] ( -> ...g5+)} 55. f4 {[%emt 0:00:00] Inhibits g5+.} g5+ $2 {[%emt 0:00:00][%mdl 8192] [#]} (55... Rf3 $11) 56. fxg5 {[%emt 0:00:00] Intending Rc6 and mate.} hxg5+ {[%emt 0:00:00]} 57. Kxg5 {[%emt 0:00:00]} Rxh3 {[%emt 0:00:00]} 58. Rc7+ {[%emt 0:00:00]} Kf8 {[%emt 0:00:00]} 59. Kg6 {[%emt 0:00:00]} Ra3 {[%emt 0:00:00]} 60. Rc6 $2 {[%emt 0:00:00]} (60. g5 {mates} Rg3 61. Rc8+ Ke7 62. Rg8 Rg1 63. Kh7 Rg4 64. g6 Rh4+ 65. Kg7) 60... Rg3 $2 {[%emt 0:00:00][%mdl 8192] [#]} (60... Ra8 $14) 61. g5 {[%emt 0:00:00]} Rg1 {[%emt 0:00:50]} 62. Ra6 {[%emt 0:00:00]} Rg2 {[%emt 0:00:31]} 63. Ra8+ {[%emt 0:00:00]} Ke7 {[%emt 0:00:06]} 64. Kh6 {[%emt 0:00:00]} Kf7 {[%emt 0:00:14]} 65. Ra7+ {[%emt 0:00:00]} Kg8 {[%emt 0:03:53]} 66. Kg6 {[%emt 0:00:00][%cal Ra7a8]} Kf8 {[%emt 0:00:12]} 67. Ra5 {[%emt 0:00:00]} Rg1 {[%emt 0:00:16]} 68. Ra8+ {[%emt 0:00:00]} Ke7 {[%emt 0:00:10]} 69. Rg8 {[%emt 0:00:00]} Rg2 {[%emt 0:01:01]} 70. Kh7 {[%emt 0:00:00]} Kf7 {[%emt 0:02:40]} 71. g6+ {[%emt 0:00:00]} Kf6 {[%emt 0:00:15]} 72. Rf8+ {[%emt 0:00:00]} Ke7 {[%emt 0:00:07]} 73. Rf3 {[%emt 0:00:00]} Rh2+ {[%emt 0:00:12]} 74. Kg7 {[%emt 0:00:00]} Rg2 {[%emt 0:01:26]} 75. Re3+ {[%emt 0:00:00]} Kd7 {[%emt 0:00:06]} 76. Kf7 {[%emt 0:00:00]} Rf2+ {[%emt 0:00:04]} 77. Kg8 {[%emt 0:00:00]} Rg2 {[%emt 0:00:06]} 78. g7 {[%emt 0:00:00]} Kd6 {[%emt 0:00:08]} 79. Rh3 {[%emt 0:00:00]} Ke6 {[%emt 0:00:16]} 80. Kh7 {[%emt 0:00:00]} Kf7 {[%emt 0:00:03]} 81. Rf3+ {[%emt 0:00:00]} Ke7 {[%emt 0:00:04]} 82. g8=Q {[%emt 0:00:00]} Rh2+ {[%emt 0:00:05]} 83. Kg6 {[%emt 0:00:00]} Rg2+ {[%emt 0:00:02]} 84. Kh7 {[%emt 0:00:00]} Rh2+ $1 {[%emt 0:00:02]} 85. Kg7 {[%emt 0:00:00] Weighted Error Value: White=0.30/Black=0.49} 1-0

[Event "4NCL 2021-22"]
[Site "England"]
[Date "2022.04.30"]
[Round "7.55"]
[White "Venkatesan, Kavin"]
[Black "Dargan, Paul A G"]
[Result "1-0"]
[ECO "E49"]
[WhiteElo "2074"]
[BlackElo "2127"]
[Annotator "TA"]
[PlyCount "73"]
[EventDate "2021.11.27"]
[EventType "team-tourn"]
[EventCountry "ENG"]
[SourceTitle "playchess.com"]
[Source "ChessBase"]
[SourceQuality "1"]
[TimeControl "40/6000+30:3000+30"]

{[%evp 23,73,33,27,27,52,44,54,27,47,33,45,46,62,62,63,50,47,0,39,9,149,138,127,133,166,163,333,296,296,327,312,320,311,312,326,338,431,429,489,418,672,664,628,589,977,963,29985,29986,29992,29993,29997,29998]} 1. d4 {[%emt 0:00:04]} Nf6 {[%emt 0:04:29]} 2. c4 {[%emt 0:00:36]} e6 {[%emt 0:00:11]} 3. Nc3 {[%emt 0:00:37]} Bb4 {[%emt 0:00:23]} 4. a3 {[%emt 0:00:58]} Bxc3+ {[%emt 0:00:48]} 5. bxc3 {[%emt 0:00:06]} c5 {[%emt 0:06:54]} 6. e3 {[%emt 0:01:14]} O-O {[%emt 0:01:17]} 7. Bd3 {[%emt 0:06:31]} Nc6 {[%emt 0:05:15]} 8. Ne2 {[%emt 0:03:22]} d5 {[%emt 0:19:31]} 9. cxd5 {[%emt 0:05:36]} exd5 {[%emt 0:04:00]} 10. O-O {[%emt 0:02:13]} Re8 {[%emt 0:23:34]} 11. f3 {[%emt 0:09:34]} Qa5 {[%emt 0:03:59]} 12. Bd2 {[%emt 0:04:06]} Qc7 {[%emt 0:03:02] [#]} 13. Qe1 $146 {[%emt 0:16:39] E49: Nimzo-Indian: Rubinstein: 5 Bd3 d5 6 a3 Bxc3+ 7 bxc3.} ({Predecessor:} 13. Ng3 Be6 14. Rf2 Rac8 15. a4 b6 16. Bc1 cxd4 17. cxd4 Nb4 18. Bb5 Bd7 19. Bd2 a5 20. Bxb4 axb4 21. Bxd7 Qxd7 {½-½ (58) Potkin,V (2583)-Lautier,J (2658) Chess.com INT 2020}) 13... b6 {[%emt 0:06:48]} 14. Qh4 {[%emt 0:02:59] Strongly threatening e4.} Ne7 {[%emt 0:00:43]} 15. Rae1 {[%emt 0:09:32] White is slightly better.} Ng6 {[%emt 0:02:14]} 16. Qf2 {[%emt 0:01:10]} Bb7 {[%emt 0:00:23]} 17. Ng3 {[%emt 0:02:16]} Rad8 {[%emt 0:03:04]} 18. h3 {[%emt 0:14:17]} Qd6 {[%emt 0:10:05]} 19. Nf5 {[%emt 0:04:15]} Qd7 {[%emt 0:01:53]} 20. Ng3 {[%emt 0:04:10]} (20. a4 $14 {feels stronger.}) 20... Qa4 {[%emt 0:01:15]} 21. Bc1 {[%emt 0:01:26]} Ba6 {[%emt 0:00:58] Black is on the road to losing.} (21... Qa5 $11 {remains equal.}) 22. Bxa6 $16 {[%emt 0:00:29]} Qxa6 {[%emt 0:00:01]} 23. e4 {[%emt 0:01:17][%cal Be3e4,Be4e5][%mdl 32] And now e5 would win.} cxd4 {[%emt 0:07:28]} 24. cxd4 {[%emt 0:00:20] Black must now prevent e5.} Rc8 $2 {[%emt 0:00:32] [#]} (24... Nd7 25. Nf5 (25. exd5 Qb5 $11) 25... Qa4) 25. e5 $1 $18 {[%emt 0:03:13]} Nd7 {[%emt 0:00:11]} 26. f4 {[%emt 0:01:57][%cal Bf3f4,Bf4f5][%mdl 32]} Qd3 {[%emt 0:02:37]} 27. Rd1 {[%emt 0:01:00][%cal Be1d1,Bd1d2,Bd2e2][%mdl 32]} Qc2 {[%emt 0:00:17]} 28. Rd2 {[%emt 0:00:28]} Qb3 {[%emt 0:00:54]} 29. f5 {[%emt 0:00:46]} Ngf8 {[%emt 0:00:02]} 30. Nh5 {[%emt 0:02:33]} Rc3 {[%emt 0:00:06]} 31. e6 {[%emt 0:01:41]} Nf6 {[%emt 0:01:19]} (31... Rxc1 $142 32. Rxc1 fxe6) 32. Nxf6+ {[%emt 0:00:34]} gxf6 {[%emt 0:00:02]} 33. Re2 {[%emt 0:01:36]} Qb5 {[%emt 0:01:52]} 34. Bh6 {[%emt 0:01:37][%cal Of2h4] Intending Qh4! and mate.} fxe6 {[%emt 0:00:47]} 35. fxe6 {[%emt 0:00:40] White mates.} Nxe6 {[%emt 0:00:11] [#]} 36. Qxf6 $1 {[%emt 0:00:32]} Qxe2 {[%emt 0:00:09]} (36... Rcc8 37. Qf7+) 37. Qf7+ {[%emt 0:00:05] Weighted Error Value: White=0.07 (flawless) /Black=0.66} 1-0